{"text_format":"1","workbook":"xlsx","n_sheets":1,"sheets":["Feuil1"],"not_rendered":{"charts":0,"images":0,"macros":1,"external_links":0,"defined_names":0,"comments":0,"pivot_tables":0},"unopened":[],"bounds":{"document_bytes":16777216,"sheet_cells":100000,"rows_first":2000,"rows_last":500,"rows_between":2000,"halvings":0,"cell_chars":16384,"cell_head_chars":4096},"cells_cut":0,"cells_raw":0,"read":"whole","date_system":"1900"}

{"sheet":"Feuil1","index":0,"n_rows":40,"n_cols":7,"rows_kept":40,"cut":false,"hidden":false,"merged":[]}
["SCAN ARRIVEE PATIENT","DATE ET HEURE D'ARRIVEE","DATE ET HEURE DE SORTIE ","TEMPS DE PRESENCE EN SALLE ",null,"SCAN",20127029702]
[693715046,"2018-05-07T19:33:40",null,{"$f":"IF(COUNT(B2:C2)=2,C2-B2,\"\")","v":""}]
[20127029702,"2018-05-08T08:50:56","2018-05-08T08:53:54",{"$f":"IF(COUNT(B3:C3)=2,C3-B3,\"\")","v":2.0601851865649223E-3}]
[null,null,null,{"$f":"IF(COUNT(B4:C4)=2,C4-B4,\"\")","v":""}]
[null,null,null,{"$f":"IF(COUNT(B5:C5)=2,C5-B5,\"\")","v":""}]
[null,null,null,""]
[null,null,null,""]
[null,null,null,""]
[null,null,null,""]
[null,null,null,""]
[null,null,null,""]
[null,null,null,""]
[null,null,null,""]
[null,null,null,""]
[null,null,null,""]
[null,null,null,""]
[null,null,null,""]
[null,null,null,""]
[null,null,null,""]
[null,null,null,""]
[null,null,null,""]
[null,null,null,""]
[null,null,null,""]
[null,null,null,""]
[null,null,null,""]
[null,null,null,""]
[null,null,null,""]
[null,null,null,""]
[null,null,null,""]
[null,null,null,""]
[null,null,null,""]
[null,null,null,""]
[null,null,null,""]
[null,null,null,""]
[null,null,null,""]
[null,null,null,""]
[null,null,null,""]
[null,null,null,""]
[null,null,null,""]
[null,null,null,""]